[Event "Romanian Superleague 2022"]
[Site "Oradea"]
[Date "2022.09.27"]
[Round "7.21"]
[White "Vedmediuc, Serghei"]
[Black "Voiteanu, Gabriel"]
[Result "1-0"]
[ECO "C42"]
[WhiteElo "2430"]
[BlackElo "2154"]
[Annotator "TA"]
[PlyCount "57"]
[EventDate "2022.09.21"]
[EventType "team-tourn"]
[EventCountry "ROU"]
[SourceTitle "playchess.com"]
[Source "ChessBase"]
[SourceQuality "1"]
[TimeControl "40/5400+30:1800+30"]

{[%evp 9,57,25,45,35,34,35,50,43,52,66,54,42,43,32,61,56,38,7,8,4,14,0,37,23,20,12,18,11,35,45,41,48,98,63,112,120,347,337,385,376,376,382,381,388,378,347,347,338,322,309]} 1. e4 {[%emt 0:00:11]} e5 {[%emt 0:00:09]} 2. Nf3 {[%emt 0:00:10]} Nf6 {[%emt 0:00:07]} 3. Nxe5 {[%emt 0:00:13]} d6 {[%emt 0:00:03]} 4. Nf3 {[%emt 0:00:10]} Nxe4 {[%emt 0:00:11]} 5. Bd3 {[%emt 0:01:41]} Nc5 {[%emt 0:01:01]} 6. Be2 {[%emt 0:00:54] C42: Petroff Defence: 3 Nxe5 and unusual White 3rd moves.} d5 {[%emt 0:00:57]} 7. d4 {[%emt 0:05:33]} Ne4 {[%emt 0:00:32]} 8. O-O {[%emt 0:00:08] White is slightly better.} Be7 {[%emt 0:00:22]} 9. c4 {[%emt 0:04:00]} dxc4 {[%emt 0:02:26]} 10. Bxc4 {[%emt 0:00:38]} O-O {[%emt 0:01:12]} 11. Nc3 {[%emt 0:12:38]} Nd6 {[%emt 0:04:35]} 12. Bb3 {[%emt 0:03:48] White is more active.} Nc6 {[%emt 0:14:23][%cal Bb8c6,Bc6a5,Ba5c4,Bc4e5,Be5g6,Bg6h4][%mdl 32] [#]} 13. d5 $146 {[%emt 0:07:00]} ({Predecessor:} 13. h3 Bf6 14. Bf4 Na5 15. Bc2 Nac4 16. Nd5 h6 17. b3 Nb6 18. Ne3 Be7 19. Re1 a5 20. Rc1 Re8 21. h4 f5 22. Bb1 Rf8 23. Ne5 Rf6 24. g4 {1-0 (24) Karpenko,A (2251)-Konev,V (2078) ICCF email 2012}) 13... Na5 {[%emt 0:02:25]} 14. Bc2 {[%emt 0:00:08]} Bf6 {[%emt 0:11:10]} 15. Nd4 {[%emt 0:17:11]} Nac4 {[%emt 0:09:53]} 16. b3 {[%emt 0:10:31]} Ne5 {[%emt 0:00:47]} (16... Bf5 $2 17. Nxf5 Nxf5 18. bxc4 $18 (18. Qh5 Bxc3 19. Rb1 g6 $17)) 17. Bf4 {[%emt 0:01:39]} Ng6 {[%emt 0:04:35]} 18. Bg3 $40 {[%emt 0:00:03][%mdl 128] White mounts an attack.} Nh4 {[%emt 0:04:55]} 19. Ne4 {[%emt 0:05:28]} Nxe4 {[%emt 0:16:57]} 20. Bxe4 {[%emt 0:00:03][%cal Bc2e4,Be4f5,Bf5d3,Bd3e2][%mdl 32]} Re8 {[%emt 0:10:14]} (20... Bd7 $14) 21. Re1 {[%emt 0:04:51]} g6 {[%emt 0:06:38]} (21... Bd7 $14) 22. Rc1 $16 {[%emt 0:01:24] Threatens to win with Nb5.} Be5 $2 {[%emt 0:02:28] [#] Black cannot hold the game after this.} (22... Bf5 $16) 23. Nb5 $18 {[%emt 0:04:11]} Bf5 {[%emt 0:03:22]} 24. Bxf5 {[%emt 0:03:52]} (24. Nxc7 Bxc7 25. Bxc7 Qg5 $18) 24... Bxg3 {[%emt 0:00:10]} 25. Rxe8+ {[%emt 0:00:11]} ({Stronger than} 25. fxg3 Rxe1+ 26. Qxe1 Nxf5 $11) (25. hxg3 Rxe1+ 26. Qxe1 Nxf5 $11) 25... Qxe8 {[%emt 0:00:11]} 26. hxg3 {[%emt 0:00:07]} Qxb5 {[%emt 0:01:53]} 27. Bd3 {[%emt 0:00:08]} ({Don't play} 27. gxh4 gxf5 28. Rxc7 Rd8 $18) 27... Qxd5 {[%emt 0:00:15][%csl Gh4][%cal Rd5g2] [#]} 28. gxh4 {[%emt 0:00:02] Hoping for Bc4.} Rd8 {[%emt 0:00:05]} 29. Be2 {[%emt 0:00:11] Weighted Error Value: White=0.07 (flawless) /Black=0.27 (precise)} ({Weaker is} 29. Rxc7 Qxd3 30. Qxd3 Rxd3 $16) 1-0

[Event "Romanian Superleague 2022"]
[Site "Oradea"]
[Date "2022.09.27"]
[Round "7.22"]
[White "Oprisor, Razvan-Gabriel"]
[Black "Manea, Alexandru"]
[Result "0-1"]
[ECO "B13"]
[WhiteElo "2175"]
[BlackElo "2326"]
[Annotator "TA"]
[PlyCount "67"]
[EventDate "2022.09.21"]
[EventType "team-tourn"]
[EventCountry "ROU"]
[SourceTitle "playchess.com"]
[Source "ChessBase"]
[SourceQuality "1"]
[TimeControl "40/5400+30:1800+30"]

{[%evp 13,67,-3,0,0,15,-5,-3,-27,-27,-25,-14,-33,-16,-14,-14,-10,-14,-22,-9,-83,-77,-138,-116,-120,-136,-158,-75,-121,-129,-188,-193,-216,-209,-193,-212,-206,-195,-312,-312,-417,-408,-405,-391,-432,-430,-488,-479,-522,-465,-497,-483,-581,-495,-635,-636,-551]} 1. e4 {[%emt 0:00:04]} c6 {[%emt 0:00:39]} 2. d4 {[%emt 0:00:31]} d5 {[%emt 0:00:09]} 3. exd5 {[%emt 0:00:54]} cxd5 {[%emt 0:00:19]} 4. Bd3 {[%emt 0:00:56]} Nc6 {[%emt 0:00:17]} 5. c3 {[%emt 0:00:07]} Qc7 {[%emt 0:00:40]} 6. Ne2 {[%emt 0:02:21]} Bg4 {[%emt 0:03:19]} 7. f3 {[%emt 0:01:49]} Bd7 {[%emt 0:00:51]} 8. f4 {[%emt 0:01:24] [#] Prevents e5. B13: Caro-Kann: Exchange Variation and Panov-Botvinnik Attack.} f5 $146 {[%emt 0:11:42]} ({Predecessor:} 8... Nf6 9. Nd2 g6 {½-½ (9) Avila Pavas,S (2373)-Cardoso Cardoso,J (2414) Santa Rosa 2021}) 9. O-O {[%emt 0:06:09]} Nf6 {[%emt 0:00:43]} 10. Na3 {[%emt 0:06:47] The position is equal.} e6 {[%emt 0:00:35]} 11. Nc2 {[%emt 0:00:22]} Be7 {[%emt 0:00:44]} 12. b3 {[%emt 0:00:53]} Ne4 {[%emt 0:01:06]} 13. c4 {[%emt 0:03:27]} O-O {[%emt 0:00:33]} 14. Ne3 {[%emt 0:03:09]} Bf6 {[%emt 0:23:53]} 15. Bb2 {[%emt 0:12:09]} Qb6 $36 {[%emt 0:06:31][%cal Rc6d4][%mdl 2048] Black is more active.} 16. Bxe4 {[%emt 0:12:06]} (16. Bb1 $11 {keeps the balance.}) 16... dxe4 $17 {[%emt 0:00:11]} 17. a3 {[%emt 0:06:38]} ({White should play} 17. Nc2) 17... Rfd8 {[%emt 0:02:43] Black is more active.} 18. c5 {[%emt 0:00:24]} Qb5 {[%emt 0:05:45]} 19. Nc4 {[%emt 0:02:25]} Na5 {[%emt 0:04:32]} ({Black should try} 19... b6 20. a4 Qa6) 20. Nxa5 {[%emt 0:06:53]} (20. a4 $142 Qxb3 21. Qxb3 Nxb3 22. Ra3) 20... Qxa5 {[%emt 0:00:06]} 21. Qc2 {[%emt 0:04:56]} (21. b4 $17 Qb5 22. Qd2) 21... Bb5 $19 {[%emt 0:02:04]} 22. Rfd1 {[%emt 0:11:21]} Bd3 {[%emt 0:01:10] This bishop pair is nice.} 23. Qd2 {[%emt 0:00:37]} Qb5 {[%emt 0:03:53][%csl LRb3,LRe2]} 24. a4 {[%emt 0:03:55]} Qxb3 {[%emt 0:03:17]} 25. Ra3 {[%emt 0:03:28]} (25. Nc1 {is a better defense.} Qxb2 26. Qxb2 Bxd4+ 27. Qxd4 Rxd4 28. Kf2) 25... Qc4 {[%emt 0:00:47]} 26. Rxd3 {[%emt 0:02:14]} exd3 {[%emt 0:00:32]} (26... Qxd3 $2 {loses.} 27. Qxd3 exd3 28. Rxd3 $19) 27. Qxd3 {[%emt 0:00:13]} Qxa4 {[%emt 0:00:11]} 28. Ra1 {[%emt 0:00:45]} Qc6 {[%emt 0:00:18] Black is clearly winning.} 29. Qe3 {[%emt 0:01:04]} b6 {[%emt 0:06:04] Strongly threatening ...bxc5.} 30. cxb6 {[%emt 0:03:04]} axb6 {[%emt 0:00:34] Threatens to win with ...Rxa1+.} 31. Rc1 {[%emt 0:00:54]} Qd5 {[%emt 0:02:00]} 32. Kf1 {[%emt 0:00:52]} Rac8 {[%emt 0:01:17]} 33. Rxc8 {[%emt 0:01:16]} Rxc8 {[%emt 0:01:07]} 34. Bc3 {[%emt 0:00:57] Weighted Error Value: White=0.42/Black=0.12 (very precise)} 0-1

[Event "Romanian Superleague 2022"]
[Site "Oradea"]
[Date "2022.09.27"]
[Round "7.23"]
[White "Antonica, Dragos-Andrei"]
[Black "Levay, Sorin"]
[Result "1/2-1/2"]
[ECO "A06"]
[WhiteElo "2321"]
[BlackElo "2138"]
[Annotator "TA"]
[PlyCount "187"]
[EventDate "2022.09.21"]
[EventType "team-tourn"]
[EventCountry "ROU"]
[SourceTitle "playchess.com"]
[Source "ChessBase"]
[SourceQuality "1"]
[TimeControl "40/5400+30:1800+30"]

{[%evp 9,187,27,34,16,38,32,37,37,46,7,23,6,27,28,37,21,29,31,45,34,47,39,45,46,48,48,48,48,48,36,61,33,36,39,80,90,93,85,137,0,53,62,67,63,62,30,97,80,87,94,104,0,0,0,0,0,0,0,0,0,0,-40,-29,-56,-48,-107,0,0,0,0,0,-50,0,-12,31,0,41,25,51,0,0,0,0,0,0,0,0,0,0,-33,-8,-40,0,0,0,-62,-53,-75,0,0,0,-87,-62,-51,-33,-112,-112,-274,-255,-251,-237,-235,-101,-101,-101,-101,-101,-118,-118,-118,-101,-101,-101,-118,-118,-118,-118,-118,-118,-118,-118,-118,-118,-200,-200,-200,-200,-200,-83,-121,-83,-121,-109,-125,-83,-120,-96,-92,-80,-80,-25,-25,0,0,0,0,282,276,263,255,243,237,210,85,85,85,85,92,97,91,141,141,141,141,141,141,141,0,0,0]} 1. b3 {[%emt 0:00:03]} d5 {[%emt 0:00:09]} 2. Bb2 {[%emt 0:00:04]} Bg4 {[%emt 0:00:08]} 3. Nf3 {[%emt 0:00:58]} Bxf3 {[%emt 0:00:09]} 4. exf3 {[%emt 0:00:22]} c6 {[%emt 0:00:05]} 5. g3 {[%emt 0:00:40]} e6 {[%emt 0:00:07]} 6. Bg2 {[%emt 0:00:47] A06: Réti Opening: 1 Nf3 d5.} Nf6 {[%emt 0:00:09]} 7. f4 {[%emt 0:01:55]} g6 {[%emt 0:00:57]} 8. O-O {[%emt 0:05:06] White is slightly better.} Bg7 {[%emt 0:00:07]} 9. d3 {[%emt 0:03:59]} O-O {[%emt 0:00:13]} 10. Nd2 {[%emt 0:00:43] [#]} Nfd7 $146 {[%emt 0:00:39]} ({Predecessor:} 10... Nbd7 11. Re1 a5 12. a4 Ne8 13. Bxg7 Nxg7 14. h4 Qb6 15. Nf3 Rac8 16. Bh3 Rfd8 {0-1 (64) Narayanan,S (2565)-Bartholomew,J (2439) Chess.com INT 2018}) 11. Bxg7 {[%emt 0:03:18]} Kxg7 {[%emt 0:00:06]} 12. h4 {[%emt 0:00:33]} h5 {[%emt 0:00:36]} 13. Nf3 {[%emt 0:01:40]} Na6 {[%emt 0:03:20]} 14. c4 {[%emt 0:03:36]} Nc7 {[%emt 0:01:39]} 15. Re1 {[%emt 0:09:34]} Qe7 {[%emt 0:08:21]} 16. Ng5 {[%emt 0:14:14]} Qf6 {[%emt 0:01:18]} 17. Qd2 {[%emt 0:00:03]} a5 {[%emt 0:00:34]} 18. Rac1 {[%emt 0:01:26]} Rfe8 {[%emt 0:04:53]} 19. Re2 {[%emt 0:08:04]} Nf8 {[%emt 0:00:57]} 20. Rce1 {[%emt 0:02:40]} Red8 {[%emt 0:01:01]} 21. Qe3 {[%emt 0:01:14]} Na6 {[%emt 0:02:50]} 22. Qb6 $1 {[%emt 0:08:54]} Nb4 {[%emt 0:00:12]} 23. Qxb7 {[%emt 0:07:43]} Nxd3 {[%emt 0:01:15]} (23... Rdb8 $142 24. Qc7 Rc8) 24. Rf1 {[%emt 0:07:41]} (24. Rxe6 $1 $16 Rab8 25. Qa7 (25. Rxf6 Rxb7 26. Rd1 Kxf6 $17)) 24... Nb4 {[%emt 0:11:12]} (24... Rdc8 $1 $11 25. cxd5 Nc5 26. Qxf7+ Qxf7 27. Nxf7 Kxf7 28. dxc6 Na6) 25. a3 $14 {[%emt 0:05:59]} Rdb8 $1 {[%emt 0:02:01]} 26. Qc7 {[%emt 0:00:43] White has more active pieces.} Rc8 $1 {[%emt 0:00:12]} 27. Qd6 {[%emt 0:01:30]} (27. Qb6 $5 {[%cal Ra3b4]} Nd7 28. Qe3 $11) 27... Rd8 {[%emt 0:03:53]} (27... Na6 $1 $11) 28. Qc5 $1 $16 {[%emt 0:01:09]} Nd7 {[%emt 0:00:13]} 29. Qe3 {[%emt 0:00:09]} Na6 {[%emt 0:00:14][%cal Bb4a6,Ba6c5,Bc5b3][%mdl 32]} 30. Qd2 {[%emt 0:03:45]} (30. cxd5 $16 cxd5 31. Rc2) 30... Nac5 $11 {[%emt 0:00:34]} 31. b4 {[%emt 0:02:53]} axb4 {[%emt 0:00:18]} 32. axb4 {[%emt 0:00:01]} Nb3 {[%emt 0:02:47]} 33. Qd3 {[%emt 0:00:25]} Nd4 {[%emt 0:00:07]} 34. Rd2 {[%emt 0:00:17]} Nf5 {[%emt 0:00:07]} 35. b5 {[%emt 0:02:08]} Nb6 $1 {[%emt 0:00:58]} 36. cxd5 {[%emt 0:02:14]} cxd5 {[%emt 0:00:08]} 37. Re2 {[%emt 0:01:54]} (37. Rc2 $15) 37... Rac8 {[%emt 0:02:06]} (37... Nc4 $17 {And now ...Nd4 would win.} 38. Rb1 Qd4) 38. Bh3 {[%emt 0:00:31]} Rc3 {[%emt 0:02:06]} 39. Qd1 {[%emt 0:00:32]} Nd4 {[%emt 0:01:45]} 40. Rd2 {[%emt 0:00:00]} ({White should try} 40. Re5 $11 Rc4 41. Rfe1) 40... Rc4 {[%emt 0:00:00]} (40... Nxb5 $15 41. Ne4 dxe4 42. Rxd8 Nd5) 41. Re1 {[%emt 0:07:41]} Rdc8 {[%emt 0:10:57]} (41... Nxb5 $2 42. Nxe6+ $1 fxe6 43. Rxe6 $18) 42. Qb1 {[%emt 0:04:56] Against Rc1} (42. Ra2 $5 {[%cal Rh3f1]}) 42... R8c5 {[%emt 0:02:18]} 43. Bf1 {[%emt 0:01:16]} Rc3 {[%emt 0:00:37]} 44. Kg2 {[%emt 0:03:32]} (44. Ra2 $14) 44... Nc2 $1 {[%emt 0:02:19] Pair of Knights!} 45. Ree2 {[%emt 0:02:17][%cal Rd2c2]} Na3 {[%emt 0:00:13][%csl LRb1,LRb5]} 46. Qe1 {[%emt 0:01:27][%cal Rg5e6]} Rc1 {[%emt 0:02:44]} (46... Nxb5 $2 47. Nxe6+ $1 {[%mdl 512]} Kh7 48. Nxc5 Rxc5 49. Re7 $18) 47. Rd1 {[%emt 0:00:25]} Rxd1 {[%emt 0:00:07]} 48. Qxd1 {[%emt 0:00:03]} Nxb5 {[%emt 0:00:15]} 49. Rc2 {[%emt 0:02:12]} Nc3 {[%emt 0:01:30]} 50. Qa1 {[%emt 0:01:22]} Nba4 {[%emt 0:00:37]} (50... Nca4 $5 {[%cal Rf6a1]} 51. Qb1 Nd7 $17) 51. Nf3 {[%emt 0:00:40]} Qf5 {[%emt 0:04:39]} 52. Rd2 {[%emt 0:01:11]} (52. Ra2 $11 Qe4 53. Bd3) 52... Qb1 $1 $15 {[%emt 0:04:05]} 53. Qa3 {[%emt 0:00:20]} Qb8 {[%emt 0:01:17]} (53... Qb6 $17) 54. Rd4 $11 {[%emt 0:01:26]} Ra5 {[%emt 0:02:11]} 55. Ne5 {[%emt 0:01:42]} (55. Ng5 $11 {keeps the balance.}) 55... Qf8 {[%emt 0:00:27]} 56. Qb3 {[%emt 0:02:30]} Ra7 $36 {[%emt 0:01:20][%mdl 2048] Black fights for an advantage.} 57. Bd3 {[%emt 0:01:44]} (57. Rb4 $15) 57... Qc5 $1 $17 {[%emt 0:01:58]} 58. Rb4 {[%emt 0:01:04] [#]} (58. Nf3 $17) 58... Nd1 $1 $19 {[%emt 0:03:00][%mdl 512]} 59. Qxd1 {[%emt 0:01:53]} (59. Rxa4 $2 Qxf2+ 60. Kh1 Qe1+ 61. Kh2 Qf2+ 62. Kh1 Ne3 $19) 59... Qxb4 {[%emt 0:00:08]} 60. Nc6 {[%emt 0:00:03]} Qc5 {[%emt 0:01:15]} (60... Nb2 $1 $19 61. Qf1 Qd2 62. Nxa7 Nxd3) 61. Qa1+ {[%emt 0:01:28]} d4 $1 {[%emt 0:01:03]} 62. Nxa7 {[%emt 0:00:36]} Qxa7 $17 {[%emt 0:00:24][%mdl 4096] Endgame KQB-KQN} 63. Kg1 {[%emt 0:00:36] Black must now prevent Bc2.} Qd7 {[%emt 0:00:07]} 64. Qa3 {[%emt 0:01:06]} Nc3 {[%emt 0:00:09]} 65. Qb4 {[%emt 0:00:24]} Qa4 {[%emt 0:00:15]} 66. Qd6 {[%emt 0:01:05]} Qd1+ {[%emt 0:00:27]} 67. Bf1 {[%emt 0:00:01]} Nd5 {[%emt 0:01:13]} 68. Qe5+ {[%emt 0:00:26]} Nf6 {[%emt 0:01:25] ...d3 is the strong threat.} 69. Qb5 {[%emt 0:01:08] Inhibits d3.} Ng4 {[%emt 0:00:19]} 70. Kg2 {[%emt 0:00:33]} Qe1 {[%emt 0:02:37]} 71. Qb2 {[%emt 0:00:02]} (71. Qe2 $17 Qb1 72. Kg1) 71... Qe4+ $1 $19 {[%emt 0:00:19]} 72. Kg1 {[%emt 0:00:09]} e5 $1 {[%emt 0:00:27]} 73. fxe5 {[%emt 0:00:40]} Qxe5 {[%emt 0:00:37]} (73... Nxe5 $19 {has better winning chances. Hoping for ...Nf3+.} 74. Ba6 Nf3+ 75. Kf1 Qe6) 74. Qd2 {[%emt 0:00:23]} Qc5 {[%emt 0:01:35]} 75. Qf4 {[%emt 0:00:32]} Ne5 {[%emt 0:00:20] aiming for ...d3.} 76. Qe4 {[%emt 0:00:28] Inhibits d3.} Qd6 {[%emt 0:00:54] Threatens to win with ...d3.} 77. Bd3 {[%emt 0:01:32]} f5 {[%emt 0:00:36]} 78. Qb7+ {[%emt 0:00:21]} Kf6 {[%emt 0:00:29]} 79. Qb5 {[%emt 0:00:42]} Qc6 {[%emt 0:00:40]} (79... Nxd3 $17 80. Qxd3 f4) 80. Qb4 {[%emt 0:00:34]} Nf3+ {[%emt 0:01:16]} ({Much weaker is} 80... Nxd3 $6 81. Qxd4+ Ne5 82. f4 $17) 81. Kf1 {[%emt 0:00:29]} Qc1+ {[%emt 0:00:36]} 82. Kg2 {[%emt 0:00:01]} Qc6 $2 {[%emt 0:02:21][%mdl 8192]} (82... Ne1+ $11 {and Black has nothing to worry.} 83. Kh2 Nf3+ 84. Kg2 Qg1+ 85. Kxf3 Qd1+ 86. Kg2 Qxd3) 83. Qf8+ $18 {[%emt 0:00:43]} Ke6 {[%emt 0:00:11] [#]} 84. Bc4+ $1 {[%emt 0:00:41][%mdl 512]} Kd7 {[%emt 0:00:42]} 85. Qf7+ {[%emt 0:00:20][%mdl 1024] White has strong compensation.} Kd8 {[%emt 0:00:55] Strongly threatening ...Nxh4+.} 86. Bd5 {[%emt 0:00:42]} (86. Qg8+ $18 {and the rest is easy.} Kc7 87. Bd5 Ne1+ 88. Kf1) 86... Ne5 $16 {[%emt 0:00:20]} 87. Qf8+ {[%emt 0:00:30]} Qe8 {[%emt 0:00:13]} 88. Qd6+ {[%emt 0:00:32]} Nd7 {[%emt 0:01:01] [#]} 89. Bc6 $1 {[%emt 0:00:22]} Qe7 {[%emt 0:00:30]} (89... Kc8 $142 90. Kh2 (90. Qxd4 Qe6 $16) 90... Qf7) 90. Qxd4 {[%emt 0:00:12]} Kc7 {[%emt 0:00:26]} 91. Bxd7 {[%emt 0:00:51]} Qxd7 {[%emt 0:00:08] [#]} 92. Qa7+ $1 {[%emt 0:00:04]} Kd6 {[%emt 0:00:12]} 93. Qb8+ {[%emt 0:00:51]} ({White should play} 93. Qa6+ $16 Kc5 94. Kf3 (94. Qxg6 Qd5+ 95. f3 Qd2+ 96. Kh3 Qd3 $11)) 93... Ke6 $11 {[%emt 0:00:16]} 94. Qg8+ {[%emt 0:00:16] Weighted Error Value: White=0.24 (precise) /Black=0.18 (very precise)} 1/2-1/2

[Event "Romanian Superleague 2022"]
[Site "Oradea"]
[Date "2022.09.27"]
[Round "7.24"]
[White "Gulie, Cosmin"]
[Black "Vilcu, Matei-Stefan"]
[Result "0-1"]
[ECO "B50"]
[WhiteElo "1973"]
[BlackElo "2221"]
[Annotator "TA"]
[PlyCount "90"]
[EventDate "2022.09.21"]
[EventType "team-tourn"]
[EventCountry "ROU"]
[SourceTitle "playchess.com"]
[Source "ChessBase"]
[SourceQuality "1"]
[TimeControl "40/5400+30:1800+30"]

{[%evp 11,90,0,0,0,-6,-6,-10,-18,4,-2,10,-12,-11,-18,-8,0,0,-20,0,0,0,0,12,12,17,4,21,0,21,0,17,6,18,13,14,0,0,0,0,0,0,-15,-15,-15,-5,-14,-15,-15,0,-16,-16,-8,0,-25,0,-132,-62,-81,-10,-20,0,-32,0,-4,-12,-33,0,-137,-148,-378,-367,-406,-375,-677,-684,-1148,-639,-759,-749,-700,-398]} 1. e4 {[%emt 0:00:04]} c5 {[%emt 0:00:07]} 2. Nf3 {[%emt 0:00:29]} d6 {[%emt 0:00:06]} 3. c3 {[%emt 0:00:25]} Nf6 {[%emt 0:00:13]} 4. Be2 {[%emt 0:00:20]} g6 {[%emt 0:00:04]} 5. O-O {[%emt 0:01:53]} Bg7 {[%emt 0:00:07]} 6. Re1 {[%emt 0:02:35]} O-O {[%emt 0:00:14]} 7. d3 {[%emt 0:00:31] B50: Sicilian: 2...d6, Miscellaneous.} Nc6 {[%emt 0:00:10]} 8. h3 {[%emt 0:01:28]} e5 {[%emt 0:00:38]} 9. Be3 {[%emt 0:00:29] [#] The position is equal.} Qe7 $146 {[%emt 0:01:03]} ({Predecessor:} 9... b6 10. Nbd2 d5 11. Bg5 h6 12. exd5 Qxd5 13. Bxf6 Bxf6 14. Nh2 Bg7 15. Bf3 Qd7 {0-1 (46) Faber,K (2099)-Paluch,A (2098) ICCF email 2018}) 10. c4 {[%emt 0:06:31]} Nd4 {[%emt 0:02:54]} 11. Nxd4 {[%emt 0:02:52]} cxd4 {[%emt 0:01:11]} 12. Bg5 {[%emt 0:09:17]} h6 {[%emt 0:00:30]} 13. Bh4 {[%emt 0:01:44]} Be6 {[%emt 0:00:14]} 14. Nd2 {[%emt 0:01:01]} Qd7 {[%emt 0:02:35]} 15. Bxf6 {[%emt 0:00:51]} Bxf6 {[%emt 0:00:09]} 16. Bg4 {[%emt 0:00:18]} Bg7 {[%emt 0:04:23]} 17. Bxe6 {[%emt 0:01:19]} Qxe6 {[%emt 0:00:05]} 18. Qb3 {[%emt 0:00:58]} Qe7 {[%emt 0:09:45]} 19. Rac1 {[%emt 0:12:05]} Rac8 {[%emt 0:00:36]} 20. Rc2 {[%emt 0:07:46]} Kh8 {[%emt 0:02:28]} 21. Qa3 {[%emt 0:04:55]} b6 {[%emt 0:10:57]} 22. b4 {[%emt 0:01:47]} h5 {[%emt 0:01:14]} 23. Qc1 {[%emt 0:07:32]} Bh6 {[%emt 0:02:30]} 24. Qd1 {[%emt 0:00:50]} Qd7 {[%emt 0:04:27]} 25. b5 {[%emt 0:03:25]} a6 {[%emt 0:03:26]} 26. a4 {[%emt 0:01:19]} Ra8 {[%emt 0:11:52]} 27. Rb2 {[%emt 0:11:42]} Rfc8 {[%emt 0:06:45]} 28. Nf3 {[%emt 0:02:30]} a5 {[%emt 0:03:10]} 29. Qe2 {[%emt 0:03:04]} Rg8 {[%emt 0:00:45]} 30. Nh2 {[%emt 0:00:27]} Raf8 {[%emt 0:01:09]} 31. Rbb1 {[%emt 0:03:07]} Qe8 {[%emt 0:02:07]} 32. Kh1 {[%emt 0:01:25]} f5 {[%emt 0:01:17]} 33. f3 {[%emt 0:01:12]} (33. exf5 $11 {remains equal.} gxf5 34. Nf3) 33... Qe7 {[%emt 0:03:50]} (33... Be3 $17 34. Nf1 f4) 34. exf5 {[%emt 0:05:20]} Rxf5 {[%emt 0:08:42]} ({Black should try} 34... gxf5 $17 35. f4 Bxf4 36. Qxh5+ Kg7) 35. Qe4 $11 {[%emt 0:00:28]} Qd8 {[%emt 0:02:58]} 36. Qd5 {[%emt 0:02:47]} Bf4 {[%emt 0:02:26]} 37. Re2 {[%emt 0:02:45]} Rf6 {[%emt 0:03:35]} 38. Qc6 {[%emt 0:01:19]} g5 {[%emt 0:00:43][%cal Og5g4] ...g4! is the strong threat.} 39. Re4 {[%emt 0:00:31]} (39. Nf1 $11) 39... Qf8 $17 {[%emt 0:04:06]} 40. Re2 $2 {[%emt 0:00:00] This costs White the game.} (40. Qd7 $17) 40... g4 $19 {[%emt 0:00:00] [#] White must now prevent ...Bxh2.} 41. fxg4 {[%emt 0:10:25]} hxg4 {[%emt 0:03:47]} 42. g3 $2 {[%emt 0:05:39]} (42. Rg1 gxh3 43. g4) 42... Bxg3 {[%emt 0:01:26] Black is clearly winning.} 43. Rg1 {[%emt 0:00:16]} gxh3 {[%emt 0:04:58] And now ...Bf2 would win.} 44. Qd7 {[%emt 0:01:03]} Rh6 {[%emt 0:13:33]} 45. Rf1 {[%emt 0:01:34]} Qg7 {[%emt 0:03:28] Weighted Error Value: White=0.47/Black=0.23 (precise)} 0-1